[Event "GER-chW Blitz 2019"]
[Site "Magdeburg"]
[Date "2019.05.25"]
[Round "10.7"]
[White "Osmanodja, Filiz"]
[Black "Ries, Jutta"]
[Result "1-0"]
[ECO "B03"]
[WhiteElo "2260"]
[BlackElo "2017"]
[Annotator "NA"]
[PlyCount "139"]
[EventDate "2019.05.25"]
[EventType "tourn"]
[EventCountry "GER"]
[SourceTitle "playchess.com"]
[Source "ChessBase"]
[SourceQuality "1"]
[TimeControl "180+2"]

1. e4 {[%emt 0:00:00]} Nf6 {[%emt 0:00:00]} 2. e5 {[%emt 0:00:00]} Nd5 3. d4 d6 4. c4 Nb6 {[%emt 0:00:02]} 5. exd6 {[%emt 0:00:01]} cxd6 {[%emt 0:00:02]} 6. Nc3 {[%emt 0:00:01]} g6 7. Be3 Bg7 {[%emt 0:00:03]} 8. Rc1 {[%emt 0:00:01]} O-O {[%emt 0:00:03]} 9. Nf3 {[%emt 0:00:09]} Bg4 {[%emt 0:00:08]} 10. h3 {[%emt 0:00:15]} Bxf3 {[%emt 0:00:09]} 11. Qxf3 {[%emt 0:00:01]} Nc6 {[%emt 0:00:01]} 12. Qd1 {[%emt 0:00:22]} d5 {[%emt 0:00:32]} 13. c5 {[%emt 0:00:15]} Nc4 {[%emt 0:00:01]} 14. b3 {[%emt 0:00:34]} Nxe3 {[%emt 0:00:03]} 15. fxe3 {[%emt 0:00:01]} e5 {[%emt 0:00:05]} 16. dxe5 {[%emt 0:01:11]} d4 {[%emt 0:00:02]} 17. exd4 {[%emt 0:00:11]} Nxd4 {[%emt 0:00:01]} 18. Ne2 {[%emt 0:00:24]} Bxe5 {[%emt 0:00:14]} 19. Nxd4 {[%emt 0:00:07]} Bxd4 {[%emt 0:00:02]} 20. Be2 {[%emt 0:00:03]} Qh4+ {[%emt 0:00:02]} 21. Kd2 {[%emt 0:00:03]} Rad8 {[%emt 0:00:02]} 22. Kc2 {[%emt 0:00:01]} Bxc5 {[%emt 0:00:02]} 23. Bd3 {[%emt 0:00:03]} Qf2+ {[%emt 0:00:06]} 24. Kb1 {[%emt 0:00:01]} Rd6 {[%emt 0:00:08]} 25. Qc2 {[%emt 0:00:03]} Qxc2+ {[%emt 0:00:04]} 26. Bxc2 {[%emt 0:00:00]} Ba3 {[%emt 0:00:01]} 27. Rcd1 {[%emt 0:00:01]} Rfd8 {[%emt 0:00:01]} 28. Rxd6 {[%emt 0:00:01]} Rxd6 {[%emt 0:00:00]} 29. Rd1 {[%emt 0:00:00]} Rf6 {[%emt 0:00:04]} 30. Rd8+ {[%emt 0:00:02]} Kg7 {[%emt 0:00:01]} 31. Rd1 {[%emt 0:00:02]} Rf2 {[%emt 0:00:01]} 32. g4 {[%emt 0:00:02]} Rf3 {[%emt 0:00:03]} 33. Rh1 {[%emt 0:00:02]} b5 {[%emt 0:00:02]} 34. h4 {[%emt 0:00:03]} Rf4 {[%emt 0:00:08]} 35. Rg1 {[%emt 0:00:03]} Kf6 {[%emt 0:00:01]} 36. g5+ {[%emt 0:00:03]} Ke5 {[%emt 0:00:03]} 37. Re1+ {[%emt 0:00:03]} Kd4 {[%emt 0:00:02]} 38. h5 {[%emt 0:00:02]} Rg4 {[%emt 0:00:11]} 39. Rd1+ {[%emt 0:00:02]} Kc5 {[%emt 0:00:08]} 40. hxg6 {[%emt 0:00:03]} hxg6 {[%emt 0:00:01]} 41. Rf1 {[%emt 0:00:02]} Rxg5 {[%emt 0:00:03]} 42. Bd1 {[%emt 0:00:03]} f5 {[%emt 0:00:02]} 43. Rf2 {[%emt 0:00:02]} Rg1 44. Kc2 Kb6 {[%emt 0:00:08]} 45. Re2 {[%emt 0:00:01]} Bc5 {[%emt 0:00:05]} 46. Re6+ {[%emt 0:00:01]} Kb7 {[%emt 0:00:01]} 47. Bf3+ {[%emt 0:00:02]} Kc7 {[%emt 0:00:01]} 48. Rc6+ {[%emt 0:00:01]} Kd7 {[%emt 0:00:02]} 49. Rxc5 {[%emt 0:00:00]} Rf1 {[%emt 0:00:23]} 50. Be2 {[%emt 0:00:04]} Rf2 {[%emt 0:00:01]} 51. Kd1 {[%emt 0:00:03]} a6 {[%emt 0:00:02]} 52. Rd5+ {[%emt 0:00:03]} Kc6 {[%emt 0:00:03]} 53. Re5 {[%emt 0:00:01]} Kd6 {[%emt 0:00:03]} 54. Re8 {[%emt 0:00:03]} f4 {[%emt 0:00:04]} 55. Rg8 {[%emt 0:00:02]} f3 {[%emt 0:00:03]} 56. Rxg6+ {[%emt 0:00:03]} Kc5 {[%emt 0:00:00]} 57. Bd3 {[%emt 0:00:03]} Rxa2 {[%emt 0:00:03]} 58. Rf6 {[%emt 0:00:01]} f2 {[%emt 0:00:01]} 59. Bb1 {[%emt 0:00:02]} Rb2 {[%emt 0:00:02]} 60. Bc2 {[%emt 0:00:01]} Kb4 {[%emt 0:00:02]} 61. Rxf2 {[%emt 0:00:01]} a5 {[%emt 0:00:12]} 62. Kc1 {[%emt 0:00:01]} Ra2 {[%emt 0:00:02]} 63. Kb1 {[%emt 0:00:02]} Ka3 {[%emt 0:00:01]} 64. Rf5 {[%emt 0:00:04]} Rb2+ {[%emt 0:00:03]} 65. Kc1 {[%emt 0:00:00]} a4 {[%emt 0:00:19]} 66. bxa4 {[%emt 0:00:06]} bxa4 {[%emt 0:00:01]} 67. Rf3+ {[%emt 0:00:03]} Ka2 {[%emt 0:00:03]} 68. Bf5 {[%emt 0:00:02]} Re2 {[%emt 0:00:35]} 69. Bb1+ Ka1 {[%emt 0:00:02]} 70. Ra3+ {[%emt 0:00:02]} 1-0

[Event "GER-chW Blitz 2019"]
[Site "Magdeburg"]
[Date "2019.05.25"]
[Round "10.8"]
[White "Michna, Marta"]
[Black "Lubbe, Melanie"]
[Result "1/2-1/2"]
[ECO "A45"]
[WhiteElo "2355"]
[BlackElo "2278"]
[Annotator "NA"]
[PlyCount "117"]
[EventDate "2019.05.25"]
[EventType "tourn"]
[EventCountry "GER"]
[SourceTitle "playchess.com"]
[Source "ChessBase"]
[SourceQuality "1"]
[TimeControl "180+2"]

1. d4 {[%emt 0:00:00]} Nf6 {[%emt 0:00:00]} 2. c3 {[%emt 0:00:00]} g6 {[%emt 0:00:00]} 3. Nf3 Bg7 {[%emt 0:00:03]} 4. h3 {[%emt 0:00:01]} d6 {[%emt 0:00:01]} 5. Bf4 {[%emt 0:00:01]} b6 6. Nbd2 {[%emt 0:00:03]} Bb7 {[%emt 0:00:04]} 7. Qc2 {[%emt 0:00:02]} Nbd7 {[%emt 0:00:04]} 8. e4 {[%emt 0:00:03]} O-O {[%emt 0:00:06]} 9. Be2 {[%emt 0:00:02]} Re8 {[%emt 0:00:03]} 10. O-O {[%emt 0:00:03]} e5 {[%emt 0:00:01]} 11. dxe5 {[%emt 0:00:01]} dxe5 {[%emt 0:00:05]} 12. Be3 {[%emt 0:00:05]} Nh5 {[%emt 0:00:16]} 13. Rfe1 {[%emt 0:00:02]} Nf4 {[%emt 0:00:06]} 14. Bf1 {[%emt 0:00:00]} Nc5 {[%emt 0:00:12]} 15. Bxc5 {[%emt 0:00:35]} bxc5 {[%emt 0:00:01]} 16. Nc4 {[%emt 0:00:17]} Qf6 {[%emt 0:00:13]} 17. Kh2 {[%emt 0:00:37]} Rad8 {[%emt 0:00:24]} 18. Rad1 {[%emt 0:00:11]} Qe6 {[%emt 0:00:13]} 19. Na5 {[%emt 0:00:25]} Ba6 {[%emt 0:00:15]} 20. Rxd8 Rxd8 {[%emt 0:00:01]} 21. Rd1 {[%emt 0:00:38]} Rxd1 {[%emt 0:00:07]} 22. Qxd1 {[%emt 0:00:01]} Bxf1 {[%emt 0:00:05]} 23. Qxf1 {[%emt 0:00:00]} Qd6 {[%emt 0:00:14]} 24. Nc4 {[%emt 0:00:05]} Qd3 {[%emt 0:00:06]} 25. Qxd3 {[%emt 0:00:03]} Nxd3 {[%emt 0:00:01]} 26. Kg1 {[%emt 0:00:02]} f6 {[%emt 0:00:07]} 27. g3 {[%emt 0:00:01]} Bh6 {[%emt 0:00:03]} 28. Kf1 {[%emt 0:00:06]} Bc1 {[%emt 0:00:04]} 29. b3 {[%emt 0:00:00]} Nb2 {[%emt 0:00:13]} 30. Nxb2 {[%emt 0:00:24]} Bxb2 31. c4 Kf7 {[%emt 0:00:05]} 32. Ke2 {[%emt 0:00:01]} Ke6 {[%emt 0:00:03]} 33. Ne1 {[%emt 0:00:01]} f5 {[%emt 0:00:03]} 34. f3 {[%emt 0:00:02]} Bd4 {[%emt 0:00:03]} 35. Nd3 {[%emt 0:00:01]} Kd6 {[%emt 0:00:03]} 36. g4 {[%emt 0:00:03]} fxe4 {[%emt 0:00:03]} 37. fxe4 {[%emt 0:00:01]} Bg1 {[%emt 0:00:03]} 38. Kf3 {[%emt 0:00:00]} Bd4 {[%emt 0:00:02]} 39. h4 {[%emt 0:00:01]} Ke6 {[%emt 0:00:02]} 40. g5 {[%emt 0:00:01]} Kd6 {[%emt 0:00:03]} 41. Kg4 {[%emt 0:00:01]} Ke6 {[%emt 0:00:01]} 42. h5 {[%emt 0:00:00]} Kd6 {[%emt 0:00:02]} 43. Ne1 {[%emt 0:00:01]} Ke6 {[%emt 0:00:01]} 44. Nf3 {[%emt 0:00:01]} Be3 {[%emt 0:00:05]} 45. Ne1 {[%emt 0:00:08]} Kf7 {[%emt 0:00:11]} 46. Nf3 {[%emt 0:00:05]} Bf4 {[%emt 0:00:06]} 47. h6 {[%emt 0:00:07]} Ke6 {[%emt 0:00:03]} 48. Nh4 {[%emt 0:00:00]} Kf7 {[%emt 0:00:02]} 49. Ng2 {[%emt 0:00:01]} Bd2 {[%emt 0:00:02]} 50. Nh4 {[%emt 0:00:01]} Bc3 {[%emt 0:00:01]} 51. Nf3 {[%emt 0:00:02]} Bb2 {[%emt 0:00:02]} 52. Ne1 {[%emt 0:00:03]} Bd4 {[%emt 0:00:02]} 53. Nd3 {[%emt 0:00:01]} Ke6 {[%emt 0:00:01]} 54. a3 {[%emt 0:00:01]} Kd6 {[%emt 0:00:09]} 55. Ne1 {[%emt 0:00:11]} Ke6 {[%emt 0:00:01]} 56. Nf3 {[%emt 0:00:00]} Bc3 {[%emt 0:00:03]} 57. Nh4 {[%emt 0:00:01]} Kf7 {[%emt 0:00:01]} 58. Ng2 {[%emt 0:00:02]} Bd4 {[%emt 0:00:02]} 59. Nh4 1/2-1/2

[Event "GER-chW Blitz 2019"]
[Site "Magdeburg"]
[Date "2019.05.25"]
[Round "10.9"]
[White "Muetsch, Annmarie"]
[Black "Fuchs, Judith"]
[Result "0-1"]
[ECO "B15"]
[WhiteElo "2266"]
[BlackElo "2218"]
[Annotator "NA"]
[PlyCount "52"]
[EventDate "2019.05.25"]
[EventType "tourn"]
[EventCountry "GER"]
[SourceTitle "playchess.com"]
[Source "ChessBase"]
[SourceQuality "1"]
[TimeControl "180+2"]

1. e4 {[%emt 0:00:00]} c6 {[%emt 0:00:00]} 2. d4 {[%emt 0:00:02]} d5 {[%emt 0:00:00]} 3. Nd2 {[%emt 0:00:01]} dxe4 {[%emt 0:00:00]} 4. Nxe4 {[%emt 0:00:01]} Nf6 {[%emt 0:00:01]} 5. Nxf6+ {[%emt 0:00:02]} exf6 {[%emt 0:00:01]} 6. c3 {[%emt 0:00:02]} Bd6 {[%emt 0:00:01]} 7. Bd3 {[%emt 0:00:01]} O-O {[%emt 0:00:02]} 8. Qc2 {[%emt 0:00:01]} Re8+ {[%emt 0:00:05]} 9. Ne2 {[%emt 0:00:01]} h5 {[%emt 0:00:01]} 10. Be3 {[%emt 0:00:04]} Nd7 {[%emt 0:00:02]} 11. O-O-O {[%emt 0:00:03]} Nf8 {[%emt 0:00:01]} 12. Kb1 {[%emt 0:00:03]} Be6 {[%emt 0:00:03]} 13. Ng3 {[%emt 0:00:07]} g6 {[%emt 0:00:16]} 14. Bh6 {[%emt 0:00:14]} f5 {[%emt 0:00:12]} 15. Ne2 {[%emt 0:00:19]} Qc7 {[%emt 0:00:08]} 16. Qd2 {[%emt 0:00:10]} Bd5 {[%emt 0:00:30]} 17. f3 {[%emt 0:00:10]} b5 {[%emt 0:00:20]} 18. Nf4 {[%emt 0:00:12]} Rab8 {[%emt 0:00:12]} 19. Nxd5 {[%emt 0:00:06]} cxd5 {[%emt 0:00:01]} 20. g4 {[%emt 0:00:09]} fxg4 {[%emt 0:00:13]} 21. fxg4 {[%emt 0:00:02]} h4 {[%emt 0:00:15]} 22. Bg5 {[%emt 0:00:22]} b4 {[%emt 0:00:06]} 23. cxb4 {[%emt 0:00:11]} Bxb4 {[%emt 0:00:08]} 24. Qc1 {[%emt 0:00:12]} Qb6 {[%emt 0:00:16]} 25. b3 {[%emt 0:00:17]} a5 {[%emt 0:00:07]} 26. Bf6 {[%emt 0:00:11]} Qxf6 {[%emt 0:00:08]} 0-1

[Event "GER-chW Blitz 2019"]
[Site "Magdeburg"]
[Date "2019.05.25"]
[Round "10.10"]
[White "Siegl, Melina"]
[Black "Kotyk, Valeriya"]
[Result "1-0"]
[ECO "C00"]
[WhiteElo "2029"]
[BlackElo "1739"]
[Annotator "NA"]
[PlyCount "69"]
[EventDate "2019.05.25"]
[EventType "tourn"]
[EventCountry "GER"]
[SourceTitle "playchess.com"]
[Source "ChessBase"]
[SourceQuality "1"]
[TimeControl "180+2"]

1. e4 {[%emt 0:00:00]} e6 {[%emt 0:00:00]} 2. Nf3 {[%emt 0:00:02]} d5 {[%emt 0:00:01]} 3. e5 {[%emt 0:00:12]} c5 {[%emt 0:00:01]} 4. c3 {[%emt 0:00:03]} Nc6 {[%emt 0:00:01]} 5. d4 {[%emt 0:00:05]} Qb6 {[%emt 0:00:01]} 6. Be2 {[%emt 0:00:14]} cxd4 {[%emt 0:00:08]} 7. cxd4 {[%emt 0:00:02]} Bb4+ {[%emt 0:00:03]} 8. Nc3 {[%emt 0:00:02]} Bd7 {[%emt 0:00:19]} 9. O-O {[%emt 0:00:04]} Bf8 {[%emt 0:00:14]} 10. a3 {[%emt 0:00:09]} Nge7 {[%emt 0:00:02]} 11. Qd2 {[%emt 0:00:34]} Nf5 {[%emt 0:00:02]} 12. Rd1 {[%emt 0:00:01]} Be7 {[%emt 0:00:01]} 13. b4 {[%emt 0:00:02]} a6 {[%emt 0:00:01]} 14. Na4 {[%emt 0:00:06]} Qa7 {[%emt 0:00:11]} 15. Nc5 {[%emt 0:00:02]} Rd8 {[%emt 0:00:04]} 16. Bb2 {[%emt 0:00:04]} O-O {[%emt 0:00:04]} 17. Bd3 {[%emt 0:00:14]} Nh4 {[%emt 0:00:20]} 18. Nxh4 {[%emt 0:00:17]} Bxh4 {[%emt 0:00:01]} 19. Qf4 {[%emt 0:00:03]} Be7 {[%emt 0:00:05]} 20. Qg4 {[%emt 0:00:09]} g6 {[%emt 0:00:01]} 21. h4 {[%emt 0:00:04]} Rfe8 {[%emt 0:00:04]} 22. h5 {[%emt 0:00:05]} Bf8 {[%emt 0:00:06]} 23. Bc1 {[%emt 0:00:07]} Ne7 {[%emt 0:00:10]} 24. Bg5 {[%emt 0:00:07]} Bb5 {[%emt 0:00:06]} 25. Bc2 {[%emt 0:00:07]} b6 {[%emt 0:00:07]} 26. Nd3 {[%emt 0:00:13]} Rc8 {[%emt 0:00:02]} 27. Rac1 {[%emt 0:00:03]} Nf5 {[%emt 0:00:01]} 28. Nf4 {[%emt 0:00:13]} Be7 {[%emt 0:00:10]} 29. Bf6 {[%emt 0:00:04]} Bf8 {[%emt 0:00:04]} 30. hxg6 {[%emt 0:00:05]} fxg6 {[%emt 0:00:03]} 31. Nxg6 {[%emt 0:00:04]} hxg6 {[%emt 0:00:09]} 32. Qxg6+ {[%emt 0:00:02]} Bg7 {[%emt 0:00:01]} 33. g4 {[%emt 0:00:10]} Nxd4 {[%emt 0:00:20]} 34. Rxd4 {[%emt 0:00:10]} Bd7 {[%emt 0:00:15]} 35. Qxg7# {[%emt 0:00:03] Ra8} 1-0

[Event "GER-chW Blitz 2019"]
[Site "Magdeburg"]
[Date "2019.05.25"]
[Round "10.11"]
[White "Hofmann, Karina"]
[Black "Silz, Elisa"]
[Result "0-1"]
[ECO "A02"]
[WhiteElo "1700"]
[BlackElo "1977"]
[Annotator "NA"]
[PlyCount "88"]
[EventDate "2019.05.25"]
[EventType "tourn"]
[EventCountry "GER"]
[SourceTitle "playchess.com"]
[Source "ChessBase"]
[SourceQuality "1"]
[TimeControl "180+2"]

1. f4 {[%emt 0:00:00]} Nf6 {[%emt 0:00:00]} 2. Nf3 {[%emt 0:00:00]} g6 {[%emt 0:00:00]} 3. e3 {[%emt 0:00:02]} Bg7 {[%emt 0:00:00]} 4. Nc3 {[%emt 0:00:01]} d5 {[%emt 0:00:00]} 5. b3 {[%emt 0:00:01]} O-O 6. Bb2 c5 {[%emt 0:00:03]} 7. d4 {[%emt 0:00:04]} Nc6 {[%emt 0:00:04]} 8. dxc5 {[%emt 0:00:03]} e6 {[%emt 0:00:02]} 9. a3 {[%emt 0:00:08]} Re8 {[%emt 0:00:07]} 10. Bd3 {[%emt 0:00:01]} Ng4 {[%emt 0:00:02]} 11. Qd2 {[%emt 0:00:07]} e5 {[%emt 0:00:06]} 12. fxe5 {[%emt 0:00:09]} Ncxe5 {[%emt 0:00:01]} 13. O-O-O {[%emt 0:00:07]} Nxd3+ {[%emt 0:00:11]} 14. Qxd3 {[%emt 0:00:07]} Nf2 {[%emt 0:00:02]} 15. Qxd5 {[%emt 0:00:04]} Qxd5 {[%emt 0:00:03]} 16. Nxd5 {[%emt 0:00:01]} Bxb2+ {[%emt 0:00:05]} 17. Kxb2 {[%emt 0:00:02]} Nxh1 {[%emt 0:00:02]} 18. Rxh1 {[%emt 0:00:01]} Be6 {[%emt 0:00:09]} 19. Nc7 {[%emt 0:00:01]} Rac8 {[%emt 0:00:01]} 20. Nxe8 {[%emt 0:00:03]} Rxe8 {[%emt 0:00:01]} 21. Nd4 {[%emt 0:00:09]} Bd5 {[%emt 0:00:03]} 22. Re1 {[%emt 0:00:19]} Bxg2 {[%emt 0:00:05]} 23. Re2 {[%emt 0:00:12]} Be4 {[%emt 0:00:06]} 24. c4 {[%emt 0:00:03]} Rc8 {[%emt 0:00:06]} 25. b4 {[%emt 0:00:08]} Bd3 {[%emt 0:00:02]} 26. Rd2 {[%emt 0:00:14]} Bxc4 {[%emt 0:00:01]} 27. Kc3 {[%emt 0:00:03]} Bd5 {[%emt 0:00:04]} 28. Nf5 {[%emt 0:00:12]} gxf5 {[%emt 0:00:10]} 29. Rxd5 {[%emt 0:00:01]} Re8 {[%emt 0:00:01]} 30. Kd4 {[%emt 0:00:02]} Re4+ {[%emt 0:00:02]} 31. Kd3 {[%emt 0:00:01]} Rh4 {[%emt 0:00:02]} 32. b5 {[%emt 0:00:15]} Rxh2 {[%emt 0:00:12]} 33. c6 {[%emt 0:00:03]} bxc6 {[%emt 0:00:08]} 34. bxc6 {[%emt 0:00:02]} Rh1 {[%emt 0:00:01]} 35. Rc5 {[%emt 0:00:04]} Rd1+ {[%emt 0:00:03]} 36. Ke2 {[%emt 0:00:01]} Rd8 {[%emt 0:00:01]} 37. Rxf5 {[%emt 0:00:05]} Rc8 {[%emt 0:00:01]} 38. Rc5 {[%emt 0:00:01]} Kf8 {[%emt 0:00:04]} 39. Kd3 {[%emt 0:00:01]} Ke7 {[%emt 0:00:01]} 40. Kc4 {[%emt 0:00:03]} Kd6 {[%emt 0:00:01]} 41. Kb5 {[%emt 0:00:12]} a6+ {[%emt 0:00:08]} 42. Kb6 {[%emt 0:00:07]} Rb8+ {[%emt 0:00:04]} 43. Ka7 {[%emt 0:00:03]} Kxc5 {[%emt 0:00:03]} 44. Kxb8 {[%emt 0:00:05]} Kxc6 {[%emt 0:00:01]} 0-1

[Event "GER-chW Blitz 2019"]
[Site "Magdeburg"]
[Date "2019.05.25"]
[Round "10.12"]
[White "Birkholz, Olga"]
[Black "Rath, Alina"]
[Result "1-0"]
[ECO "D00"]
[WhiteElo "2031"]
[BlackElo "2042"]
[Annotator "NA"]
[PlyCount "74"]
[EventDate "2019.05.25"]
[EventType "tourn"]
[EventCountry "GER"]
[SourceTitle "playchess.com"]
[Source "ChessBase"]
[SourceQuality "1"]
[TimeControl "180+2"]

1. d4 {[%emt 0:00:00]} d5 {[%emt 0:00:00]} 2. Nc3 {[%emt 0:00:00]} e6 {[%emt 0:00:00]} 3. Bf4 {[%emt 0:00:02]} c5 {[%emt 0:00:04]} 4. e3 {[%emt 0:00:01]} Nf6 {[%emt 0:00:02]} 5. Bd3 {[%emt 0:00:02]} a6 {[%emt 0:00:01]} 6. Nf3 {[%emt 0:00:04]} Nc6 {[%emt 0:00:02]} 7. O-O {[%emt 0:00:03]} Bd6 {[%emt 0:00:02]} 8. Bg3 {[%emt 0:00:11]} O-O {[%emt 0:00:11]} 9. a4 {[%emt 0:00:04]} h6 {[%emt 0:00:18]} 10. b3 {[%emt 0:00:04]} cxd4 {[%emt 0:00:09]} 11. exd4 {[%emt 0:00:02]} Bxg3 {[%emt 0:00:08]} 12. hxg3 {[%emt 0:00:02]} Rb8 {[%emt 0:00:07]} 13. Re1 {[%emt 0:00:08]} Qc7 {[%emt 0:00:08]} 14. Qd2 {[%emt 0:00:03]} Bd7 {[%emt 0:00:07]} 15. Nd1 {[%emt 0:00:08]} b5 {[%emt 0:00:07]} 16. axb5 {[%emt 0:00:08]} axb5 {[%emt 0:00:01]} 17. Nc3 {[%emt 0:00:01]} b4 {[%emt 0:00:19]} 18. Na4 {[%emt 0:00:03]} Bc8 {[%emt 0:00:03]} 19. Rac1 {[%emt 0:00:10]} Qa7 {[%emt 0:00:09]} 20. c4 {[%emt 0:00:13]} bxc3 {[%emt 0:00:33]} 21. Qxc3 {[%emt 0:00:08]} Nb4 {[%emt 0:00:12]} 22. Bb1 {[%emt 0:00:10]} Ba6 {[%emt 0:00:06]} 23. Nc5 {[%emt 0:00:01]} Bc8 {[%emt 0:00:06]} 24. Ne5 {[%emt 0:00:06]} Na6 {[%emt 0:00:07]} 25. Nc6 {[%emt 0:00:02]} Qb6 {[%emt 0:00:06]} 26. Nxb8 {[%emt 0:00:02]} Nxb8 {[%emt 0:00:01]} 27. b4 {[%emt 0:00:04]} Na6 {[%emt 0:00:24]} 28. Nd3 {[%emt 0:00:09]} Bd7 {[%emt 0:00:03]} 29. Qb2 {[%emt 0:00:09]} Bb5 {[%emt 0:00:03]} 30. Nc5 {[%emt 0:00:05]} Bc4 {[%emt 0:00:07]} 31. Nxa6 {[%emt 0:00:06]} Qxa6 {[%emt 0:00:00]} 32. Re3 {[%emt 0:00:05]} Rb8 {[%emt 0:00:02]} 33. Ra3 {[%emt 0:00:09]} Qb6 {[%emt 0:00:03]} 34. Bd3 {[%emt 0:00:05]} Bxd3 {[%emt 0:00:04]} 35. Rxd3 {[%emt 0:00:01]} Qxb4 {[%emt 0:00:02]} 36. Rc8+ {[%emt 0:00:10]} Rxc8 37. Qxb4 Rc1+ {[%emt 0:00:00]} 1-0

[Event "GER-chW Blitz 2019"]
[Site "Magdeburg"]
[Date "2019.05.25"]
[Round "11.1"]
[White "Rath, Alina"]
[Black "Roesler, Hannah Clara Hed"]
[Result "1-0"]
[ECO "D35"]
[WhiteElo "2042"]
[BlackElo "1619"]
[Annotator "NA"]
[PlyCount "49"]
[EventDate "2019.05.25"]
[EventType "tourn"]
[EventCountry "GER"]
[SourceTitle "playchess.com"]
[Source "ChessBase"]
[SourceQuality "1"]
[TimeControl "180+2"]

1. c4 {[%emt 0:00:00]} e6 {[%emt 0:00:00]} 2. Nc3 {[%emt 0:00:00]} d5 {[%emt 0:00:01]} 3. d4 {[%emt 0:00:02]} Nf6 {[%emt 0:00:06]} 4. e3 {[%emt 0:00:01]} Bb4 {[%emt 0:00:08]} 5. Nf3 {[%emt 0:00:03]} O-O {[%emt 0:00:14]} 6. Bd3 {[%emt 0:00:01]} Ne4 {[%emt 0:00:08]} 7. Qc2 {[%emt 0:00:14]} f5 {[%emt 0:00:04]} 8. O-O {[%emt 0:00:02]} Bxc3 {[%emt 0:00:03]} 9. bxc3 {[%emt 0:00:02]} c5 {[%emt 0:00:38]} 10. Ba3 {[%emt 0:00:25]} b6 {[%emt 0:00:12]} 11. dxc5 {[%emt 0:00:08]} Nxc5 {[%emt 0:00:28]} 12. Rad1 {[%emt 0:00:07]} Ba6 {[%emt 0:00:30]} 13. Bxc5 {[%emt 0:00:04]} bxc5 {[%emt 0:00:04]} 14. cxd5 {[%emt 0:00:01]} exd5 {[%emt 0:00:21]} 15. Bxa6 {[%emt 0:00:10]} Nxa6 {[%emt 0:00:01]} 16. c4 {[%emt 0:00:01]} Nb4 {[%emt 0:00:10]} 17. Qb3 {[%emt 0:00:15]} Rb8 {[%emt 0:00:06]} 18. cxd5 {[%emt 0:00:07]} Kh8 {[%emt 0:00:08]} 19. d6 {[%emt 0:00:04]} Nc6 {[%emt 0:00:05]} 20. Qd5 {[%emt 0:00:06]} Nb4 {[%emt 0:00:03]} 21. Qxc5 {[%emt 0:00:04]} Nxa2 {[%emt 0:00:05]} 22. Ne5 {[%emt 0:00:07]} Nb4 {[%emt 0:00:04]} 23. Qc4 {[%emt 0:00:17]} Rf6 24. Nf7+ Rxf7 25. Qxf7 1-0

[Event "GER-chW Blitz 2019"]
[Site "Magdeburg"]
[Date "2019.05.25"]
[Round "11.2"]
[White "Silz, Elisa"]
[Black "Birkholz, Olga"]
[Result "1-0"]
[ECO "A40"]
[WhiteElo "1977"]
[BlackElo "2031"]
[Annotator "NA"]
[PlyCount "69"]
[EventDate "2019.05.25"]
[EventType "tourn"]
[EventCountry "GER"]
[SourceTitle "playchess.com"]
[Source "ChessBase"]
[SourceQuality "1"]
[TimeControl "180+2"]

1. d4 {[%emt 0:00:00]} g6 {[%emt 0:00:01]} 2. c4 {[%emt 0:00:00]} Bg7 {[%emt 0:00:01]} 3. Nc3 {[%emt 0:00:00]} f5 {[%emt 0:00:01]} 4. Nf3 {[%emt 0:00:03]} d6 {[%emt 0:00:01]} 5. g3 {[%emt 0:00:01]} Nf6 {[%emt 0:00:02]} 6. Bg2 {[%emt 0:00:01]} O-O {[%emt 0:00:01]} 7. O-O {[%emt 0:00:01]} Qe8 {[%emt 0:00:02]} 8. d5 {[%emt 0:00:04]} e5 {[%emt 0:00:04]} 9. dxe6 {[%emt 0:00:02]} Bxe6 {[%emt 0:00:02]} 10. Nd5 {[%emt 0:00:05]} Na6 {[%emt 0:00:19]} 11. Ng5 {[%emt 0:00:05]} Bxd5 {[%emt 0:00:04]} 12. cxd5 {[%emt 0:00:01]} Nc5 {[%emt 0:00:14]} 13. Be3 {[%emt 0:00:11]} Nfe4 {[%emt 0:00:08]} 14. Bxc5 {[%emt 0:00:11]} Nxc5 {[%emt 0:00:03]} 15. b4 {[%emt 0:00:06]} Bxa1 {[%emt 0:00:11]} 16. Qxa1 {[%emt 0:00:01]} Ne4 {[%emt 0:00:07]} 17. Ne6 {[%emt 0:00:02]} Rf7 {[%emt 0:00:02]} 18. f3 {[%emt 0:00:16]} Nd2 {[%emt 0:00:39]} 19. Rd1 {[%emt 0:00:03]} Nc4 {[%emt 0:00:01]} 20. Qc3 {[%emt 0:00:05]} Ne5 {[%emt 0:00:07]} 21. f4 {[%emt 0:00:16]} Ng4 {[%emt 0:00:04]} 22. e4 {[%emt 0:00:25]} c6 {[%emt 0:00:07]} 23. exf5 {[%emt 0:00:07]} gxf5 {[%emt 0:00:01]} 24. Ng5 {[%emt 0:00:10]} Rg7 {[%emt 0:00:13]} 25. Re1 {[%emt 0:00:06]} Re7 {[%emt 0:00:07]} 26. Ne6 {[%emt 0:00:10]} Rc8 {[%emt 0:00:04]} 27. h3 {[%emt 0:00:18]} Nh6 {[%emt 0:00:08]} 28. Qf6 {[%emt 0:00:07]} Qg6 {[%emt 0:00:18]} 29. Qxe7 {[%emt 0:00:04]} Qxg3 {[%emt 0:00:04]} 30. Ng5 {[%emt 0:00:09]} Qh4 {[%emt 0:00:12]} 31. Qxh7+ {[%emt 0:00:09]} Kf8 {[%emt 0:00:02]} 32. Qh8+ {[%emt 0:00:03]} Ng8 {[%emt 0:00:03]} 33. Qxh4 {[%emt 0:00:02]} Kg7 {[%emt 0:00:01]} 34. Qh7+ {[%emt 0:00:02]} Kf8 35. Qf7# 1-0